bitfinex/quotes_ETHUSD_20240922
["timestamp","ask_amount","ask_price","bid_price","bid_amount"]
[1726990292551,5.23531375,2587.0,2586.9,0.0382661]
[1726990293666,6.85718438,2587.0,2586.9,0.0382661]
[1726990294354,2.58363231,2587.0,2586.9,0.0382661]
[1726990294528,2.99170438,2587.0,2586.9,0.0382661]
[1726990296564,1.36983375,2587.0,2586.9,0.0382661]
[1726990297248,3.39279273,2587.0,2586.9,0.0382661]
[1726990298629,1.36983375,2587.0,2586.9,0.0382661]
[1726990300926,3.39693097,2587.0,2586.9,0.0382661]
[1726990301127,5.23531375,2587.0,2586.9,0.0382661]
[1726990305345,3.86548,2587.0,2586.9,0.0382661]
[1726990308662,6.29758479,2587.0,2586.9,0.0382661]
[1726990308865,3.86548,2587.0,2586.9,0.0382661]
[1726990309490,6.30073254,2587.0,2586.9,0.0382661]
[1726990310250,4.73045254,2587.1,2586.9,0.0382661]
[1726990311694,2.43525254,2587.0,2586.9,0.0382661]
[1726990311858,4.73045254,2587.1,2586.9,0.0382661]
[1726990312759,2.43525254,2587.0,2586.9,0.0382661]
[1726990313060,2.43525254,2587.1,2586.9,0.0382661]
[1726990313366,2.43525254,2587.2,2587.0,2.2816]
[1726990314487,2.43673472,2587.2,2587.0,2.2816]
[1726990319718,6.30193472,2587.2,2586.9,0.0382661]
[1726990319933,4.08455989,2587.1,2586.9,0.0382661]
[1726990320098,2.43673472,2587.0,2586.9,0.0382661]
[1726990320684,8.71331472,2587.0,2586.9,0.0382661]
[1726990320928,6.27658,2587.0,2586.9,0.0382661]
[1726990321264,8.71233472,2587.0,2586.9,0.0382661]
[1726990321407,2.43575472,2587.0,2586.9,0.0382661]
[1726990321606,7.94892989,2587.1,2586.9,0.0382661]
[1726990321813,9.77968979,2587.1,2586.9,0.0382661]
[1726990322416,2.43575472,2587.0,2586.9,0.0382661]
[1726990322820,2.43591985,2587.0,2586.9,0.0382661]
[1726990324713,9.77985492,2587.1,2586.9,0.0382661]
[1726990325089,2.43591985,2587.0,2586.9,0.0382661]
[1726990326932,4.26667975,2587.1,2586.9,0.0382661]
[1726990327944,4.26679996,2587.1,2586.9,0.0382661]
[1726990328144,2.43604006,2587.1,2586.9,0.0382661]
[1726990329630,7.94906523,2587.2,2586.9,0.0382661]
[1726990329845,2.43604006,2587.1,2586.9,0.0382661]
[1726990330007,2.43604006,2587.2,2587.0,2.3016]
[1726990330207,2.43604006,2587.2,2587.0,6.16706]
[1726990330642,2.43604006,2587.3,2587.0,2.3016]
[1726990331348,4.08386957,2587.3,2587.0,2.3016]
[1726990332962,4.08362937,2587.3,2587.0,2.3016]
[1726990334344,5.05095339,2587.3,2587.0,2.3016]
[1726990335535,2.4358042,2587.2,2587.0,2.3016]
[1726990336060,4.08362937,2587.3,2587.0,2.3016]
[1726990337322,2.02981308,2587.1,2587.0,2.3016]
[1726990337950,2.02974241,2587.1,2587.0,2.3016]
[1726990340066,2.02971405,2587.1,2587.0,2.3016]
[1726990342964,2.02965831,2587.1,2587.0,2.3016]
[1726990344370,2.0296712,2587.1,2587.0,2.3016]
[1726990344533,4.08341514,2587.3,2587.0,2.3016]
[1726990344734,2.0296812,2587.1,2587.0,2.3016]
[1726990344936,4.08341514,2587.3,2587.0,2.3016]
[1726990345160,2.02969553,2587.1,2587.0,2.3016]
[1726990345360,2.02968456,2587.1,2587.0,2.3016]
[1726990345531,2.0296926,2587.1,2587.0,2.3016]
[1726990346031,2.0296926,2587.1,2587.0,6.16708]
[1726990346233,2.0296926,2587.1,2587.0,2.3016]
[1726990348281,2.02971817,2587.1,2587.0,2.3016]
[1726990348480,2.02976436,2587.1,2587.0,2.3016]
[1726990348974,4.08348698,2587.3,2587.0,2.3016]
[1726990349184,5.16248522,2587.3,2587.0,2.3016]
[1726990349986,7.56788522,2587.3,2586.9,0.0382661]
[1726990350179,2.02991093,2587.0,2586.9,0.0382661]
[1726990351585,2.0300897,2587.0,2586.9,0.0382661]
[1726990352138,2.43566181,2587.2,2586.9,3.9038761]
[1726990352384,2.03011262,2587.0,2586.9,3.9038761]
[1726990353089,2.03007168,2587.0,2586.9,3.9038761]
[1726990358183,2.03033105,2587.0,2586.9,3.9038761]
[1726990363405,2.4363843,2587.3,2587.0,3.86545]
[1726990364790,4.08420947,2587.3,2587.0,3.86545]
[1726990364992,0.40842095,2587.2,2587.0,3.86545]
[1726990365502,2.84480525,2587.2,2587.0,3.86545]
[1726990365671,0.40842095,2587.2,2587.0,3.86545]
[1726990366013,2.84480525,2587.2,2587.0,3.86545]
[1726990366171,0.40842095,2587.2,2587.0,3.86545]
[1726990367003,4.08420947,2587.3,2587.0,3.86545]
[1726990368863,2.4363843,2587.2,2587.0,3.86545]
[1726990372926,2.4363843,2587.2,2586.9,3.9038861]
[1726990373220,2.4363843,2587.1,2586.9,3.9038861]
[1726990373527,2.4377856,2587.2,2586.9,3.9038861]
[1726990373857,3.517244,2587.2,2586.9,3.9038861]
[1726990375432,2.4377856,2587.1,2586.9,3.9038861]
[1726990378449,2.43816781,2587.1,2586.9,3.9038861]
[1726990378750,3.51762621,2587.2,2586.9,3.9038861]
[1726990379448,2.43816781,2587.1,2586.9,3.9038861]
[1726990380832,2.43816781,2587.2,2586.9,3.9038861]
[1726990381148,2.03169203,2587.0,2586.9,3.9038861]
[1726990381397,2.43816781,2587.2,2586.9,3.9038861]
[1726990382147,2.43809621,2587.2,2586.9,7.7693861]
[1726990382349,2.03169636,2587.0,2586.9,7.7693861]
[1726990382552,2.43809621,2587.2,2586.9,7.7693861]
[1726990383427,2.43809621,2587.2,2586.9,3.9037661]
[1726990386073,2.43809621,2587.2,2586.9,7.7693161]
[1726990387063,2.43807337,2587.2,2586.9,7.7693161]
[1726990389150,2.43807337,2587.2,2586.9,3.9037661]
[1726990389957,2.03169364,2587.0,2586.9,3.9037661]
[1726990390181,2.43807337,2587.2,2586.9,3.9037661]
[1726990390780,2.031689,2587.0,2586.9,3.9037661]
[1726990391273,2.43807337,2587.2,2586.9,3.9037661]
[1726990391481,7.85815517,2587.5,2586.9,3.9037661]
[1726990391772,2.03167755,2587.0,2586.9,3.9037661]
[1726990391963,2.43801966,2587.2,2586.9,3.9037661]
[1726990392161,2.43800152,2587.2,2587.0,3.86539]
[1726990392363,2.43800152,2587.2,2587.0,3.8654]
[1726990392557,2.43800152,2587.3,2587.0,3.8654]
[1726990392764,2.43800152,2587.3,2587.2,6.14918]
[1726990392980,2.03134441,2587.4,2587.3,3.86503]
[1726990393195,2.03134441,2587.5,2587.3,3.86503]
[1726990393469,12.72793511,2587.9,2587.5,3.86473]
[1726990393470,2.03122881,2587.6,2587.5,3.86473]
[1726990393768,2.02986483,2587.6,2587.5,3.86473]
[1726990394173,4.08582669,2587.8,2587.5,3.86473]
[1726990394379,2.02926969,2587.6,2587.5,3.86473]
[1726990394551,2.02929848,2587.6,2587.5,3.86473]
[1726990394758,1.64782517,2587.6,2587.3,3.8649]
[1726990394955,2.02933132,2587.4,2587.3,3.8649]
[1726990396866,2.02933132,2587.4,2587.2,3.86508]
[1726990397063,1.62326055,2587.3,2587.2,3.86508]
[1726990397363,1.6232418,2587.3,2587.2,3.86508]
[1726990398090,2.02907518,2587.4,2587.2,3.86508]
[1726990398295,1.62316092,2587.3,2587.2,3.86508]
[1726990417430,1.62316092,2587.3,2587.1,3.86532]
[1726990417736,1.21697648,2587.2,2587.1,3.86532]
[1726990417907,1.62316092,2587.3,2587.1,3.86532]
[1726990418106,1.62316092,2587.3,2586.9,3.9037861]
[1726990418107,4.2596035,2587.3,2586.9,3.9037861]
[1726990418457,0.81133194,2587.0,2586.9,3.9037861]
[1726990420808,1.21699792,2587.0,2586.9,3.9037861]
[1726990422046,1.62316092,2587.1,2586.9,3.9037861]
[1726990423198,1.62316092,2587.0,2586.9,3.9037861]
[1726990427551,1.62316092,2587.1,2587.0,3.86548]
[1726990427705,1.62316092,2587.1,2586.9,6.2559861]
[1726990428229,1.62316092,2587.1,2586.9,10.1215361]
[1726990428430,1.62316092,2587.1,2587.0,3.86548]
[1726990429551,2.02869721,2587.2,2587.0,3.86548]
[1726990429712,1.62317224,2587.1,2587.0,3.86548]
[1726990429903,2.02869721,2587.2,2587.0,3.86548]
[1726990430133,1.62317543,2587.1,2587.0,3.86548]
[1726990430336,1.62317347,2587.1,2587.0,3.86548]
[1726990430547,2.02869721,2587.2,2587.0,3.86548]
[1726990430744,1.62320442,2587.1,2587.0,3.86548]
[1726990430924,1.62320421,2587.1,2587.0,3.86548]
[1726990431519,1.21733459,2587.1,2587.0,3.86548]
[1726990434058,1.21733459,2587.2,2587.1,3.86533]
[1726990435653,1.62320421,2587.3,2587.2,3.86518]
[1726990436961,1.21746669,2587.3,2587.2,6.23738]
[1726990437145,1.21746669,2587.3,2587.2,6.83967685]
[1726990443328,1.21746669,2587.4,2587.3,3.86503]
[1726990443670,1.62320421,2587.5,2587.4,3.86488]
[1726990444627,1.62293588,2587.6,2587.5,3.86473]
[1726990444830,2.02930187,2587.7,2587.6,3.86458]
[1726990445636,2.02930187,2587.8,2587.7,3.86443]
[1726990450973,2.0273146,2587.8,2587.7,3.86443]
[1726990451685,2.02713402,2587.8,2587.7,3.86443]
[1726990452382,3.67495919,2587.9,2587.7,3.86443]
[1726990452685,2.02713402,2587.8,2587.7,3.86443]
[1726990453389,3.67495919,2587.9,2587.7,3.86443]
[1726990453972,2.02713402,2587.8,2587.7,3.86443]
[1726990454169,3.67495919,2587.9,2587.7,3.86443]
[1726990455892,1.64782517,2587.9,2587.7,3.86443]
[1726990456115,1.62128825,2587.8,2587.7,3.86443]
[1726990456392,1.62120574,2587.8,2587.7,3.86443]
[1726990456998,3.67445133,2587.9,2587.7,3.86443]
[1726990457491,1.62120502,2587.8,2587.7,3.86443]
[1726990464069,1.62120502,2587.9,2587.7,3.86443]
[1726990464214,1.62120502,2587.9,2587.8,3.86428]
[1726990465128,1.62120502,2587.9,2587.7,3.86443]
[1726990465316,1.21553236,2587.8,2587.7,3.86443]
[1726990475433,1.62120502,2587.9,2587.7,3.86443]
[1726990476237,1.62120502,2587.9,2587.8,3.86428]
[1726990476587,2.02726067,2588.0,2587.8,3.86428]
[1726990476804,1.62209093,2587.9,2587.8,3.86428]
[1726990477088,2.02726067,2588.0,2587.8,3.86428]
[1726990478523,2.02726067,2587.9,2587.8,3.86428]
[1726990481384,2.02851303,2587.9,2587.8,3.86428]
[1726990484646,3.6763382,2587.9,2587.8,3.86428]
[1726990485118,3.67697931,2587.9,2587.8,3.86428]
[1726990485516,1.64782517,2587.9,2587.8,3.86428]
[1726990490257,4.74998116,2588.0,2587.8,3.86428]
[1726990490845,2.3148,2588.0,2587.8,3.86428]
[1726990495881,4.74998116,2588.0,2587.8,3.86428]
[1726990496967,4.74998116,2588.0,2587.9,3.86413]
[1726990497182,2.3148,2588.0,2587.9,3.86413]
[1726990497337,4.08300633,2588.1,2587.9,3.86413]
[1726990497754,4.60033735,2588.1,2587.9,3.86413]
[1726990497975,2.02978854,2588.2,2588.1,3.86383]
[1726990498162,1.62377951,2588.3,2588.2,3.86368]
[1726990498389,1.62288359,2588.3,2588.2,3.86368]
[1726990498598,1.62288359,2588.4,2588.3,3.86353]
[1726990498762,2.02978854,2588.5,2588.4,3.86339]
[1726990499609,2.02978854,2588.6,2588.5,3.86324]
[1726990500794,2.02783449,2588.6,2588.5,3.86324]
[1726990501663,4.41823449,2588.7,2588.5,3.86324]
[1726990502505,1.62112362,2588.6,2588.5,3.86324]
[1726990502911,1.62112362,2588.7,2588.6,3.86309]
[1726990506025,2.3904,2588.6,2588.5,3.86324]
[1726990506822,4.01152362,2588.6,2588.5,3.86324]
[1726990508523,2.3904,2588.6,2588.5,3.86324]
[1726990509018,4.01152362,2588.6,2588.5,3.86324]
[1726990510014,3.96152362,2588.6,2588.5,3.86324]
[1726990510218,4.76499225,2588.6,2588.3,3.86348]
[1726990510376,1.21452434,2588.5,2588.3,7.72689]
[1726990510717,1.21452434,2588.5,2588.3,3.86344]
[1726990510919,1.21452434,2588.4,2588.3,3.86344]
[1726990511379,1.21452434,2588.5,2588.3,3.86344]
[1726990511585,1.21452434,2588.4,2588.3,3.86344]
[1726990512209,1.21452434,2588.5,2588.3,3.86344]
[1726990512395,1.21452434,2588.4,2588.3,3.86344]
[1726990514583,2.4111,2588.3,2587.5,2.3213]
[1726990514818,2.4111,2587.9,2587.5,7.72924]
[1726990515025,0.80966799,2587.8,2587.5,3.86462]
[1726990515193,0.80966799,2587.7,2587.3,2.3213]
[1726990515391,0.80966799,2587.5,2587.3,3.86492]
[1726990515584,0.80966799,2587.5,2587.4,3.86488]
[1726990518915,0.80966799,2587.5,2587.2,3.86507]
[1726990518916,3.65772434,2587.5,2587.2,3.86507]
[1726990519122,0.80963225,2587.4,2587.2,3.86507]
[1726990522528,3.25283225,2587.5,2587.2,3.86507]
[1726990522933,3.25283225,2587.5,2586.9,0.0382661]
[1726990522934,2.4432,2587.3,2586.9,0.0382661]
[1726990523231,3.25283225,2587.3,2586.9,3.9038861]
[1726990523435,0.80963225,2587.2,2586.9,3.9038861]
[1726990524897,0.80963225,2587.2,2586.9,0.0382661]
[1726990525202,3.25283225,2587.1,2586.9,0.0382661]
[1726990525401,2.4432,2587.1,2586.9,0.0382661]
[1726990526139,3.25283225,2587.1,2586.9,0.0382661]
[1726990526654,2.4432,2587.1,2586.9,0.0382661]
[1726990527348,1.64782517,2587.0,2586.9,0.0382661]
[1726990527532,7.95650517,2587.0,2586.9,0.0382661]
[1726990528045,9.17102951,2587.0,2586.9,0.0382661]
[1726990528601,8.50650517,2587.0,2586.9,0.0382661]
[1726990528820,9.72102951,2587.0,2586.9,0.0382661]
[1726990529027,11.65649373,2587.0,2586.9,0.0382661]
[1726990530325,10.44196939,2587.0,2586.9,0.0382661]
[1726990530631,11.24949054,2587.0,2586.9,0.0382661]
[1726990533426,10.44196939,2587.0,2586.9,0.0382661]
[1726990538208,8.79414422,2587.0,2586.9,0.0382661]
[1726990538521,6.57648939,2587.0,2586.9,0.0382661]
[1726990538727,4.64102517,2587.0,2586.9,0.0382661]
[1726990539767,8.50650517,2587.0,2586.9,0.0382661]
[1726990542365,3.86534,2587.1,2586.9,0.0382661]
[1726990542563,1.64782517,2587.0,2586.9,0.0382661]
[1726990542763,5.51330517,2587.0,2586.9,0.0382661]
[1726990543000,1.64782517,2587.0,2586.9,0.0382661]
[1726990545241,4.10812517,2587.0,2586.9,0.0382661]
[1726990548463,5.29201569,2587.0,2586.9,0.0382661]
[1726990552197,9.15749569,2587.0,2586.9,0.0382661]
[1726990555501,9.96501684,2587.0,2586.9,0.0382661]
[1726990555705,9.15749569,2587.0,2586.9,0.0382661]
[1726990556463,9.96501684,2587.0,2586.9,0.0382661]
[1726990557558,9.15749569,2587.0,2586.9,0.0382661]
[1726990558468,10.37202003,2587.0,2586.9,0.0382661]
[1726990559255,10.92202003,2587.0,2586.9,0.0382661]
[1726990559463,11.72975916,2587.0,2586.9,0.0382661]
[1726990559661,9.70749569,2587.0,2586.9,0.0382661]
[1726990559862,11.72975916,2587.0,2586.9,0.0382661]
[1726990560488,9.70749569,2587.0,2586.9,0.0382661]
[1726990565682,12.13421186,2587.0,2586.9,0.0382661]
[1726990565888,9.70749569,2587.0,2586.9,0.0382661]
[1726990566288,12.13421186,2587.0,2586.9,0.0382661]
[1726990567670,9.13160553,2587.0,2586.9,0.0382661]
[1726990567867,2.83171569,2587.0,2586.9,0.0382661]
[1726990568170,1.18389052,2587.0,2586.9,0.0382661]
[1726990568782,3.61830036,2587.0,2586.9,0.0382661]
[1726990569193,1.18389052,2587.0,2586.9,0.0382661]
[1726990569603,3.61830036,2587.0,2586.9,0.0382661]
[1726990570200,1.18389052,2587.0,2586.9,0.0382661]
[1726990570395,3.61830036,2587.0,2586.9,0.0382661]
[1726990570583,5.26612553,2587.0,2586.9,0.0382661]
[1726990571685,3.61830036,2587.0,2586.9,0.0382661]
[1726990571995,2.43679042,2587.0,2586.9,0.0382661]
[1726990572703,2.43718731,2587.0,2586.9,0.0382661]
[1726990574912,6.30266731,2587.0,2586.9,0.0382661]
[1726990575123,1.64782517,2587.0,2586.9,0.0382661]
[1726990575313,4.08506547,2587.0,2586.9,0.0382661]
[1726990575479,1.64782517,2587.0,2586.9,0.0382661]
[1726990575917,2.71185021,2587.0,2586.9,0.0382661]
[1726990576850,5.14909132,2587.0,2586.9,0.0382661]
[1726990577021,2.43724111,2587.0,2586.9,0.0382661]
[1726990577326,2.43724111,2587.1,2586.9,2.4837661]
[1726990579493,2.43724111,2587.1,2586.9,0.0382661]
[1726990580597,2.43724111,2587.0,2586.9,0.0382661]
[1726990582714,2.43685771,2587.0,2586.9,0.0382661]
[1726990582893,2.43685771,2587.1,2586.9,0.0382661]
[1726990583087,2.43685771,2587.0,2586.9,0.0382661]
[1726990586100,2.43685771,2587.1,2586.9,0.0382661]
[1726990587687,2.43683327,2587.1,2586.9,0.0382661]
[1726990588492,2.43683327,2587.0,2586.9,0.0382661]
[1726990588693,2.43683327,2587.1,2586.9,0.0382661]
[1726990589031,4.04966739,2587.1,2586.9,0.0382661]
[1726990590320,7.91500739,2587.1,2586.9,0.0382661]
[1726990590498,2.43683327,2587.0,2586.9,0.0382661]
[1726990592706,7.96027412,2587.1,2586.9,0.0382661]
[1726990592912,2.43680075,2587.0,2586.9,0.0382661]
[1726990593523,3.14584154,2587.0,2586.9,0.0382661]
[1726990595649,7.01132154,2587.0,2586.9,0.0382661]
[1726990595819,6.77234596,2587.0,2586.9,0.0382661]
[1726990596003,9.15354596,2587.0,2586.9,0.0382661]
[1726990600543,3.14565576,2587.0,2586.9,0.0382661]
[1726990601914,7.01113576,2587.0,2586.9,0.0382661]
[1726990602835,7.01109256,2587.0,2586.9,0.0382661]
[1726990603625,2.43657177,2587.1,2586.9,0.0382661]
[1726990603836,2.43657177,2587.2,2586.9,0.0382661]
[1726990605154,2.43657177,2587.1,2586.9,0.0382661]
[1726990605329,10.02576,2587.3,2586.9,0.0382661]
[1726990605330,2.43657177,2587.2,2586.9,0.0382661]
[1726990607323,2.43657177,2587.1,2586.9,0.0382661]
[1726990607519,2.43657177,2587.2,2586.9,0.0382661]
[1726990607852,2.43629168,2587.2,2586.9,0.0382661]
[1726990608364,2.43629168,2587.1,2586.9,0.0382661]
[1726990608525,6.16043,2587.5,2587.0,2.4694]
[1726990608526,2.43629168,2587.3,2587.0,2.4694]
[1726990608717,2.43629168,2587.3,2587.1,3.8653]
[1726990609122,2.43629168,2587.3,2587.0,2.4694]
[1726990609369,2.03005299,2587.1,2587.0,2.4694]
[1726990611541,2.03005299,2587.1,2587.0,6.33488]
[1726990612826,2.02971809,2587.1,2587.0,6.33488]
[1726990615163,2.02971809,2587.1,2587.0,2.4694]
[1726990616361,2.02971809,2587.1,2586.9,0.0382661]
[1726990616563,2.39747242,2587.0,2586.9,0.0382661]
[1726990616873,2.02971809,2587.0,2586.9,0.0382661]
[1726990617863,2.02956246,2587.0,2586.9,0.0382661]
[1726990620231,2.02956246,2587.0,2586.9,3.9038961]
[1726990620430,2.02956246,2587.1,2586.9,3.9038961]
[1726990621433,2.02943874,2587.1,2586.9,3.9038961]
[1726990622078,2.02943874,2587.0,2586.9,3.9038961]
[1726990622231,2.02943874,2587.1,2586.9,3.9038961]
[1726990625648,2.02943874,2587.0,2586.9,3.9038961]
[1726990625874,2.02943874,2587.1,2586.9,3.9038961]
[1726990626355,1.64782517,2587.2,2586.9,3.9038961]
[1726990626564,2.02934238,2587.1,2586.9,3.9038961]
[1726990627285,1.62345232,2587.0,2586.9,3.9038961]
[1726990627584,2.02934238,2587.1,2586.9,3.9038961]
[1726990627771,1.62341945,2587.0,2586.9,3.9038961]
[1726990627950,2.02934238,2587.1,2586.9,3.9038961]
[1726990628570,2.02934238,2587.1,2587.0,6.18088]
[1726990628776,2.02934238,2587.2,2587.0,6.18088]
[1726990629090,2.02934238,2587.1,2587.0,6.18088]
[1726990630387,2.02934238,2587.2,2587.1,3.86533]
[1726990630551,1.6232016,2587.2,2587.1,6.18073]
[1726990633370,2.02877596,2587.4,2587.2,3.86518]
[1726990633371,1.6232016,2587.3,2587.2,3.86518]
[1726990634594,1.6232016,2587.3,2587.2,6.25918]
[1726990634752,1.6232016,2587.3,2587.2,6.86515485]
[1726990636106,1.21670863,2587.3,2587.2,6.86515485]
[1726990642206,1.21670863,2587.3,2587.2,6.25918]
[1726990642585,1.21627184,2587.3,2587.2,6.25918]
[1726990642786,1.6232016,2587.4,2587.2,6.25918]
[1726990643297,1.21627121,2587.3,2587.2,6.25918]
[1726990643497,1.6232016,2587.4,2587.2,6.25918]
[1726990643711,1.21632007,2587.3,2587.2,6.25918]
[1726990644908,1.6232016,2587.4,2587.2,6.25918]
[1726990646526,1.6232016,2587.4,2587.2,3.86518]
[1726990647023,1.6232016,2587.3,2587.2,3.86518]
[1726990648399,1.57191381,2587.3,2587.2,3.86518]
[1726990651987,2.02755397,2587.4,2587.1,3.86532]
[1726990652518,2.4151,2587.5,2587.1,3.86532]
[1726990652519,2.02755397,2587.3,2587.1,3.86532]
[1726990653703,2.02755397,2587.4,2587.1,3.86532]
[1726990653903,2.02755397,2587.3,2587.1,3.86532]
[1726990654139,2.02755397,2587.4,2587.1,3.86532]
[1726990654340,2.02755397,2587.3,2587.1,3.86532]
[1726990654544,2.02755397,2587.4,2587.1,3.86532]
[1726990655707,2.02755397,2587.3,2587.1,3.86532]
[1726990655902,2.02755397,2587.4,2587.1,3.86532]
[1726990656105,2.02755397,2587.3,2587.1,3.86532]
[1726990656450,1.6228609,2587.2,2587.1,3.86532]
[1726990658908,1.6228609,2587.3,2587.1,3.86532]
[1726990659536,1.6228609,2587.2,2587.1,3.86532]
[1726990659739,1.6228609,2587.3,2587.1,3.86532]
[1726990659926,1.6228609,2587.2,2587.1,3.86532]
[1726990660132,1.6228609,2587.3,2587.1,3.86532]
[1726990660318,1.6228609,2587.2,2587.1,3.86532]
[1726990660534,1.6228609,2587.3,2587.1,3.86532]
[1726990660913,1.2171951,2587.2,2587.1,3.86532]
[1726990661229,1.6228609,2587.3,2587.1,3.86532]
[1726990662241,1.6228609,2587.2,2587.1,3.86532]
[1726990662450,1.6228609,2587.3,2587.1,3.86532]
[1726990662607,1.6228609,2587.2,2587.1,3.86532]
[1726990662945,1.6228609,2587.3,2587.1,3.86532]
[1726990663129,1.6228609,2587.2,2587.1,3.86532]
[1726990669261,2.0292995,2587.3,2587.1,3.86532]
[1726990671436,2.03009991,2587.2,2587.1,3.86532]
[1726990671787,2.03009991,2587.2,2586.9,3.9037961]
[1726990671925,1.62414315,2587.0,2586.9,3.9037961]
[1726990675149,1.62414315,2587.1,2586.9,3.9037961]
[1726990675466,1.62414315,2587.0,2586.9,4.92390271]
[1726990676754,1.62414315,2587.1,2586.9,4.92390271]
[1726990676960,1.62414315,2587.0,2586.9,4.92390271]
[1726990679383,1.62414315,2587.0,2586.9,7.24520271]
[1726990679698,1.62458653,2587.1,2587.0,3.86548]
[1726990679860,1.62458664,2587.1,2587.0,3.86548]
[1726990681588,1.62458664,2587.1,2587.0,7.19583761]
[1726990681754,2.03066245,2587.3,2587.0,7.19583761]
[1726990681755,1.62458664,2587.2,2587.1,3.86533]
[1726990694018,1.62458664,2587.3,2587.2,3.86518]
[1726990694323,1.62430334,2587.3,2587.2,3.86518]
[1726990695074,2.03050645,2587.4,2587.2,3.86518]
[1726990695276,1.62428666,2587.3,2587.2,3.86518]
[1726990695575,2.03050645,2587.4,2587.3,3.86503]
[1726990699701,2.03050645,2587.5,2587.4,3.86488]
[1726990700823,4.82100774,2587.7,2587.4,3.86488]
[1726990702211,2.02989775,2587.5,2587.4,3.86488]
[1726990702412,4.82100774,2587.7,2587.4,3.86488]
[1726990702616,2.02988521,2587.5,2587.4,3.86488]
[1726990702812,4.82100774,2587.7,2587.4,3.86488]
[1726990703805,2.02983894,2587.5,2587.4,3.86488]
[1726990704030,4.82100774,2587.7,2587.4,3.86488]
[1726990704341,2.02984129,2587.5,2587.4,3.86488]
[1726990705104,4.82015146,2587.7,2587.4,3.86488]
[1726990705346,2.02977137,2587.5,2587.4,3.86488]
[1726990705546,4.82015146,2587.7,2587.4,3.86488]
[1726990706017,2.02974126,2587.5,2587.4,3.86488]
[1726990707442,4.82015146,2587.7,2587.2,7.73021]
[1726990707753,1.62374327,2587.3,2587.2,3.86504]
[1726990713866,1.62374327,2587.3,2587.1,3.86531]
[1726990713867,1.62374327,2587.3,2587.1,7.73056]
[1726990714067,1.62374327,2587.3,2587.1,3.86525]
[1726990714278,1.2178476,2587.2,2587.1,3.86525]
[1726990714426,1.62374327,2587.3,2587.1,3.86525]
[1726990714635,1.62374327,2587.3,2587.2,3.86518]
[1726990714834,1.62381122,2587.3,2587.2,3.86518]
[1726990715463,1.62381957,2587.3,2587.2,3.86518]
[1726990716741,4.50526472,2587.4,2587.2,3.86518]
[1726990717081,1.6238409,2587.3,2587.2,3.86518]
[1726990717248,4.50526472,2587.4,2587.2,3.86518]
[1726990717453,2.02966472,2587.3,2587.2,3.86518]
[1726990718975,1.62395913,2587.3,2587.2,3.86518]
[1726990719181,1.62393115,2587.3,2587.2,3.86518]
[1726990719362,4.50526472,2587.4,2587.2,3.86518]
[1726990719713,2.02966472,2587.3,2587.2,3.86518]
[1726990720100,4.50526472,2587.4,2587.2,3.86518]
[1726990720421,2.03031934,2587.3,2587.2,3.86518]
[1726990724135,2.4756,2587.4,2587.1,3.8653]
[1726990724431,2.03078982,2587.2,2587.1,3.8653]
[1726990724884,2.03094329,2587.2,2587.1,3.8653]
[1726990725426,2.03094329,2587.2,2587.0,6.18677]
[1726990725427,2.03094329,2587.2,2587.0,3.86547]
[1726990725722,1.62490274,2587.1,2587.0,3.86547]
[1726990726100,2.03094329,2587.2,2587.0,3.86547]
[1726990726301,1.62483227,2587.1,2587.0,3.86547]
[1726990726496,1.62480074,2587.1,2587.0,3.86547]
[1726990726696,2.03094329,2587.2,2587.0,3.86547]
[1726990727016,1.62481701,2587.1,2587.0,3.86547]
[1726990727256,1.62473986,2587.1,2587.0,3.86547]
[1726990727390,2.03094329,2587.2,2586.9,7.7693961]
[1726990727590,1.6247945,2587.0,2586.9,3.9037661]
[1726990731199,1.6247945,2587.1,2587.0,3.86548]
[1726990731533,1.62425862,2587.1,2587.0,3.86548]
[1726990732536,1.62425862,2587.1,2587.0,6.16738]
[1726990739679,1.62425862,2587.2,2587.1,3.86533]
[1726990739897,1.62398159,2587.2,2587.1,3.86533]
[1726990740173,4.35039919,2587.3,2587.1,3.86533]
[1726990740482,1.62396312,2587.2,2587.1,3.86533]
[1726990740684,4.34983727,2587.3,2587.1,3.86533]
[1726990741171,1.62394959,2587.2,2587.1,3.86533]
[1726990741537,4.34983727,2587.3,2587.1,3.86533]
[1726990744054,1.62396748,2587.2,2587.1,3.86533]
[1726990744259,2.02993802,2587.2,2587.1,3.86533]
[1726990744454,4.34983802,2587.3,2587.1,3.86533]
[1726990744660,1.62396157,2587.2,2587.1,3.86533]
[1726990745487,1.62398469,2587.2,2587.1,3.86533]
[1726990745777,1.62396735,2587.2,2587.1,3.86533]
[1726990745975,4.34983802,2587.3,2587.1,3.86533]
[1726990746186,1.62399184,2587.2,2587.1,3.86533]
[1726990746351,4.34983802,2587.3,2587.1,3.86533]
[1726990746794,1.62398577,2587.2,2587.1,3.86533]
[1726990746955,3.65392379,2587.2,2587.1,3.86533]
[1726990747154,4.34983802,2587.3,2587.1,3.86533]
[1726990747762,2.02993802,2587.2,2587.1,3.86533]
[1726990748289,4.34983802,2587.3,2587.1,3.86533]
[1726990749297,1.62410916,2587.2,2587.1,3.86521]
[1726990749498,2.03014571,2587.3,2587.1,3.86521]
[1726990749670,2.03014571,2587.2,2587.1,3.86521]
[1726990750382,1.62417839,2587.2,2587.1,3.86533]
[1726990751601,2.03014571,2587.2,2587.1,3.86533]
[1726990752611,2.03035146,2587.2,2587.1,3.86533]
[1726990752900,2.43642175,2587.5,2587.1,3.86533]
[1726990753094,1.3197499,2587.5,2587.1,3.86533]
[1726990754228,2.03040338,2587.2,2587.1,3.86533]
[1726990755084,1.3197499,2587.5,2587.1,3.86533]
[1726990755380,2.4063,2587.6,2587.1,3.86533]
[1726990755581,1.62436217,2587.2,2587.1,3.86533]
[1726990755840,2.03045309,2587.3,2587.2,3.86518]
[1726990755982,2.03045309,2587.4,2587.3,3.86503]
[1726990756177,2.03045309,2587.5,2587.3,3.86503]
[1726990756418,2.03045309,2587.4,2587.3,3.86503]
[1726990756621,2.03045309,2587.5,2587.3,3.86503]
[1726990757123,2.03045309,2587.4,2587.3,3.86503]
[1726990757378,2.4063,2587.6,2587.3,3.86503]
[1726990757527,2.03028075,2587.4,2587.3,3.86503]
[1726990758825,1.62413438,2587.4,2587.3,6.22683]
[1726990760523,1.62394552,2587.4,2587.3,6.22683]
[1726990762152,1.2178761,2587.4,2587.3,7.236031]
[1726990762508,1.62394552,2587.5,2587.4,3.86488]
[1726990768885,1.62394552,2587.6,2587.5,3.86473]
[1726990769051,2.03028075,2587.6,2587.5,3.86473]
[1726990769256,2.03028075,2587.7,2587.5,3.86473]